[Event "DPMM 2023-24"]
[Site "Germany"]
[Date "2024.01.27"]
[Round "2.4"]
[White "Heinz, Thomas"]
[Black "Schütze, Norman"]
[Result "1/2-1/2"]
[ECO "B26"]
[WhiteElo "2108"]
[BlackElo "2285"]
[PlyCount "86"]
[EventDate "2024.03.14"]
[EventType "team-tourn"]
[EventCountry "GER"]
[TimeControl "40/6000:20/3000:0"]

1. e4 c5 2. Nc3 Nc6 3. g3 g6 4. Bg2 Bg7 5. d3 d6 6. Be3 e5 7. f4 exf4 8. Bxf4 Nge7 9. Qd2 Ne5 10. Nf3 Bg4 11. Nxe5 dxe5 12. Be3 Rc8 13. O-O O-O 14. Nd5 Nxd5 15. exd5 Qd6 16. Rab1 b6 17. a3 Bd7 18. c4 f5 19. b4 Rf7 20. Rf2 Qc7 21. Kh1 Bf8 22. bxc5 bxc5 23. Qb2 h5 24. Bg5 Bd6 25. Qc3 Rff8 26. Rfb2 Rb8 27. Kg1 Rfc8 28. Bc1 Qd8 29. Qd2 Rxb2 30. Rxb2 Rb8 31. Qh6 Qe8 32. Bf3 Rxb2 33. Bxb2 Bf8 34. Qg5 Kh7 35. Qe3 Bd6 36. Bc1 Qf8 37. Kg2 Qg7 38. Bb2 Qf6 39. Qc1 Bc7 40. Qe3 Bd6 41. Bc3 Qe7 42. Bd2 Qf8 43. Bc1 Qg7 1/2-1/2

[Event "DPMM 2023-24"]
[Site "Germany"]
[Date "2024.01.28"]
[Round "2.4"]
[White "Doescher, Thorsten"]
[Black "Meiber, Alexander"]
[Result "1-0"]
[ECO "E61"]
[WhiteElo "2016"]
[BlackElo "1813"]
[PlyCount "77"]
[EventDate "2024.03.14"]
[EventType "team-tourn"]
[EventCountry "GER"]
[TimeControl "40/6000:20/3000:0"]

1. c4 d6 2. Nc3 Nf6 3. Nf3 g6 4. d4 Bf5 5. Bg5 Bg7 6. e3 h6 7. Bh4 g5 8. Bg3 Nbd7 9. Bd3 Bxd3 10. Qxd3 c5 11. h3 cxd4 12. exd4 a5 13. O-O O-O 14. Rfe1 Nb6 15. Nd2 Re8 16. Rad1 d5 17. c5 Nbd7 18. Nf3 Nb8 19. Ne5 Nfd7 20. Nxd5 Nxe5 21. dxe5 e6 22. Nb6 Qxd3 23. Rxd3 Ra6 24. f3 Bf8 25. Bf2 Bg7 26. a3 Nc6 27. Nc4 Raa8 28. Bg3 Red8 29. Red1 Bf8 30. Rxd8 Nxd8 31. Nd6 Bg7 32. b4 axb4 33. axb4 Kf8 34. b5 Ke7 35. Rc1 Kd7 36. Nc4 Kc7 37. Rd1 Bf8 38. Bf2 Bg7 39. Nb6 1-0

[Event "DPMM 2023-24"]
[Site "Germany"]
[Date "2024.03.15"]
[Round "3.1"]
[White "Krasenkow, Michal"]
[Black "Bui, Bao Anh Le"]
[Result "1-0"]
[WhiteElo "2521"]
[BlackElo "2133"]
[PlyCount "85"]
[EventDate "2024.03.14"]
[EventType "team-tourn"]
[EventCountry "GER"]
[TimeControl "40/6000:20/3000:0"]

1. d4 {[%emt 0:00:00]} d5 {[%emt 0:00:00]} 2. c4 {[%emt 0:00:00]} e6 {[%emt 0:00:00]} 3. Nc3 {[%emt 0:00:00]} Nf6 {[%emt 0:00:00]} 4. cxd5 {[%emt 0:00:00]} exd5 {[%emt 0:00:00]} 5. Bg5 {[%emt 0:00:00]} c6 {[%emt 0:01:07]} 6. e3 {[%emt 0:00:00]} h6 {[%emt 0:00:01]} 7. Bh4 {[%emt 0:00:00]} Be7 {[%emt 0:00:00]} 8. Bd3 {[%emt 0:00:00]} O-O {[%emt 0:00:32]} 9. Nge2 {[%emt 0:00:00]} Nbd7 {[%emt 0:00:21]} 10. O-O {[%emt 0:00:00]} Nh5 {[%emt 0:02:35]} 11. Bxe7 {[%emt 0:00:00]} Qxe7 {[%emt 0:00:00]} 12. Qd2 {[%emt 0:00:00]} Re8 {[%emt 0:05:53]} 13. Rae1 {[%emt 0:00:00]} Ndf6 {[%emt 0:09:25]} 14. Bc2 {[%emt 0:03:06]} Bd7 {[%emt 0:07:47]} 15. Nc1 {[%emt 0:16:48]} Ne4 {[%emt 0:07:23]} 16. Nxe4 {[%emt 0:00:00]} dxe4 {[%emt 0:00:00]} 17. f3 {[%emt 0:00:00]} Nf6 {[%emt 0:33:08]} 18. Nb3 {[%emt 0:00:00]} Bf5 {[%emt 0:03:51]} 19. Qf2 {[%emt 0:02:46]} Bh7 {[%emt 0:03:00]} 20. f4 {[%emt 0:02:40]} Bf5 {[%emt 0:00:05]} 21. h3 {[%emt 0:00:00]} Be6 {[%emt 0:00:14]} 22. Rc1 {[%emt 0:00:00]} a5 {[%emt 0:03:46]} 23. a3 {[%emt 0:10:35]} a4 {[%emt 0:06:48]} 24. Nd2 {[%emt 0:00:06]} Bd5 {[%emt 0:00:00]} 25. g4 {[%emt 0:01:19]} Nd7 {[%emt 0:00:00]} 26. Nb1 {[%emt 0:00:34]} b5 {[%emt 0:04:05]} 27. Nc3 {[%emt 0:03:20]} b4 {[%emt 0:01:29]} 28. axb4 {[%emt 0:02:55]} Qxb4 {[%emt 0:00:00]} 29. g5 {[%emt 0:00:49]} Qxb2 {[%emt 0:06:24]} 30. Bxa4 {[%emt 0:00:45]} Qxf2+ {[%emt 0:00:00]} 31. Rxf2 {[%emt 0:07:02]} Red8 {[%emt 0:00:00]} 32. Rb2 {[%emt 0:03:11]} Ra6 {[%emt 0:00:41]} 33. Nxd5 {[%emt 0:09:59]} cxd5 {[%emt 0:00:00]} 34. Bxd7 {[%emt 0:00:00]} Rxd7 {[%emt 0:01:25]} 35. Rb8+ {[%emt 0:00:00]} Kh7 {[%emt 0:00:00]} 36. f5 {[%emt 0:00:00]} Rda7 {[%emt 0:00:00]} 37. Rcc8 {[%emt 0:00:15]} Ra1+ {[%emt 0:00:00]} 38. Kg2 {[%emt 0:00:00]} R7a2+ {[%emt 0:00:00]} 39. Kg3 {[%emt 0:00:00]} Rg1+ {[%emt 0:00:00]} 40. Kf4 {[%emt 0:00:00]} hxg5+ {[%emt 0:00:00]} 41. Ke5 {[%emt 0:48:31]} f6+ {[%emt 0:48:36]} 42. Kxd5 {[%emt 0:00:00]} Ra5+ {[%emt 0:00:00]} 43. Kxe4 {[%emt 0:00:00]} 1-0

[Event "DPMM 2023-24"]
[Site "Germany"]
[Date "2024.03.15"]
[Round "3.2"]
[White "Tscheuschner, Georg"]
[Black "Graf, Alexander"]
[Result "0-1"]
[WhiteElo "2250"]
[BlackElo "2526"]
[PlyCount "64"]
[EventDate "2024.03.14"]
[EventType "team-tourn"]
[EventCountry "GER"]
[TimeControl "40/6000:20/3000:0"]

1. Nf3 {[%emt 0:00:00]} Nf6 {[%emt 0:01:06]} 2. c4 {[%emt 0:00:00]} e6 {[%emt 0:01:09]} 3. Nc3 {[%emt 0:00:00]} Bb4 {[%emt 0:01:01]} 4. Qc2 {[%emt 0:00:00]} c5 {[%emt 0:00:25]} 5. a3 {[%emt 0:00:00]} Ba5 {[%emt 0:00:13]} 6. g4 {[%emt 0:08:24]} O-O {[%emt 0:16:24]} 7. g5 {[%emt 0:04:37]} Ne8 {[%emt 0:02:01]} 8. e3 {[%emt 0:07:12]} f5 {[%emt 0:01:48]} 9. Rb1 {[%emt 0:09:30]} Nc6 {[%emt 0:02:36]} 10. d4 {[%emt 0:07:29]} d6 {[%emt 0:04:30]} 11. d5 {[%emt 0:04:08]} exd5 {[%emt 0:02:41]} 12. cxd5 {[%emt 0:00:00]} Ne5 {[%emt 0:00:00]} 13. Nxe5 {[%emt 0:06:56]} dxe5 {[%emt 0:00:00]} 14. b4 {[%emt 0:07:19]} cxb4 {[%emt 0:00:55]} 15. axb4 {[%emt 0:00:00]} Bb6 {[%emt 0:00:00]} 16. Na4 {[%emt 0:09:18]} Qxg5 {[%emt 0:00:11]} 17. Nxb6 {[%emt 0:09:59]} axb6 {[%emt 0:00:00]} 18. Bb2 {[%emt 0:03:11]} Qe7 {[%emt 0:07:33]} 19. Rg1 {[%emt 0:07:36]} Bd7 {[%emt 0:01:13]} 20. d6 {[%emt 0:07:42]} Nxd6 {[%emt 0:03:59]} 21. Rd1 {[%emt 0:00:17]} Ba4 {[%emt 0:01:47]} 22. Bc4+ {[%emt 0:00:00]} Kh8 {[%emt 0:02:43]} 23. Bb3 {[%emt 0:00:35]} Rac8 {[%emt 0:02:08]} 24. Qd3 {[%emt 0:00:00]} Nc4 {[%emt 0:01:07]} 25. Bxc4 {[%emt 0:05:09]} Bxd1 {[%emt 0:00:01]} 26. Qc3 {[%emt 0:00:06]} Bg4 {[%emt 0:00:07]} 27. h3 {[%emt 0:00:00]} b5 {[%emt 0:00:16]} 28. Qxe5 {[%emt 0:00:00]} Qxe5 {[%emt 0:00:00]} 29. Bxe5 {[%emt 0:00:00]} Rxc4 {[%emt 0:00:00]} 30. Rg3 {[%emt 0:00:00]} Rc1+ {[%emt 0:02:39]} 31. Kd2 {[%emt 0:00:00]} Rd1+ {[%emt 0:00:00]} 32. Kc2 {[%emt 0:00:00]} Rc8+ {[%emt 0:00:00]} 0-1

[Event "DPMM 2023-24"]
[Site "Germany"]
[Date "2024.03.15"]
[Round "3.3"]
[White "Hesse, Henrik"]
[Black "Kollars, Dmitrij"]
[Result "0-1"]
[WhiteElo "2312"]
[BlackElo "2629"]
[PlyCount "188"]
[EventDate "2024.03.14"]
[EventType "team-tourn"]
[EventCountry "GER"]
[TimeControl "40/6000:20/3000:0"]

1. c4 {[%emt 0:00:00]} e5 {[%emt 0:00:00]} 2. g3 {[%emt 0:00:00]} c6 {[%emt 0:00:00]} 3. d4 {[%emt 0:00:00]} e4 {[%emt 0:00:00]} 4. d5 {[%emt 0:00:00]} Bb4+ {[%emt 0:00:03]} 5. Bd2 {[%emt 0:00:00]} Qe7 {[%emt 0:00:02]} 6. Bxb4 {[%emt 0:00:00]} Qxb4+ {[%emt 0:00:00]} 7. Qd2 {[%emt 0:00:00]} Na6 {[%emt 0:01:07]} 8. Nc3 {[%emt 0:32:05]} Nf6 {[%emt 0:00:52]} 9. b3 {[%emt 0:06:29]} O-O {[%emt 0:05:21]} 10. Bg2 {[%emt 0:02:45]} Re8 {[%emt 0:03:48]} 11. Nh3 {[%emt 0:00:17]} cxd5 {[%emt 0:04:09]} 12. Nxd5 {[%emt 0:03:28]} Nxd5 {[%emt 0:00:30]} 13. cxd5 {[%emt 0:00:00]} d6 {[%emt 0:01:28]} 14. Nf4 {[%emt 0:00:45]} Bf5 {[%emt 0:03:09]} 15. e3 {[%emt 0:04:15]} Rac8 {[%emt 0:09:16]} 16. Qxb4 {[%emt 0:00:06]} Nxb4 {[%emt 0:00:00]} 17. O-O {[%emt 0:00:00]} Rc2 {[%emt 0:13:07]} 18. Rfc1 {[%emt 0:02:56]} Rec8 {[%emt 0:06:55]} 19. Rxc2 {[%emt 0:00:00]} Rxc2 {[%emt 0:00:00]} 20. g4 {[%emt 0:02:15]} Bxg4 {[%emt 0:00:25]} 21. a3 {[%emt 0:00:00]} Ra2 {[%emt 0:06:06]} 22. Rxa2 {[%emt 0:20:55]} Nxa2 {[%emt 0:00:00]} 23. Bxe4 {[%emt 0:00:00]} Nc3 {[%emt 0:07:00]} 24. f3 {[%emt 0:11:35]} Nxe4 {[%emt 0:00:25]} 25. fxg4 {[%emt 0:00:00]} Nd2 {[%emt 0:00:18]} 26. Ne2 {[%emt 0:03:41]} Nxb3 {[%emt 0:00:19]} 27. Nc3 {[%emt 0:00:00]} Nd2 {[%emt 0:00:25]} 28. Nb5 {[%emt 0:00:16]} Nc4 {[%emt 0:00:00]} 29. Nxa7 {[%emt 0:00:00]} Nxa3 {[%emt 0:00:33]} 30. Kf2 {[%emt 0:00:15]} Kf8 {[%emt 0:02:37]} 31. Ke2 {[%emt 0:00:00]} Ke8 {[%emt 0:03:53]} 32. Nc8 {[%emt 0:04:05]} Nc4 {[%emt 0:09:28]} 33. Na7 {[%emt 0:00:00]} Kd7 {[%emt 0:08:56]} 34. Nb5 {[%emt 0:00:00]} Nb6 {[%emt 0:02:46]} 35. e4 {[%emt 0:00:00]} Nc4 {[%emt 0:00:07]} 36. h3 {[%emt 0:00:00]} g5 {[%emt 0:00:26]} 37. Kd3 {[%emt 0:00:49]} Ne5+ {[%emt 0:00:00]} 38. Ke3 {[%emt 0:00:00]} Ng6 {[%emt 0:00:28]} 39. Kf3 {[%emt 0:00:00]} Ke7 {[%emt 0:00:00]} 40. Kg3 {[%emt 0:00:08]} Nh4 {[%emt 0:01:53]} 41. Kf2 {[%emt 0:02:33]} Ng6 {[%emt 0:00:00]} 42. Kf3 {[%emt 0:03:24]} Ne5+ {[%emt 0:01:52]} 43. Ke3 {[%emt 0:03:20]} Kd7 {[%emt 0:05:29]} 44. Ke2 {[%emt 0:01:00]} f6 {[%emt 0:12:05]} 45. Ke3 {[%emt 0:01:59]} Ng6 {[%emt 0:01:04]} 46. Kf3 {[%emt 0:00:00]} Ke7 {[%emt 0:01:13]} 47. Nd4 {[%emt 0:07:24]} Nf4 {[%emt 0:01:40]} 48. Kg3 {[%emt 0:02:31]} Nd3 {[%emt 0:00:00]} 49. Kf3 {[%emt 0:00:42]} Kd7 {[%emt 0:00:00]} 50. Nb5 {[%emt 0:00:00]} Nc5 {[%emt 0:00:18]} 51. Ke3 {[%emt 0:00:12]} Na6 {[%emt 0:00:16]} 52. Kd3 {[%emt 0:03:02]} Nc7 {[%emt 0:00:14]} 53. Nd4 {[%emt 0:00:35]} b5 {[%emt 0:08:04]} 54. Kc3 {[%emt 0:03:03]} b4+ {[%emt 0:00:00]} 55. Kc4 {[%emt 0:11:44]} Na6 {[%emt 0:00:00]} 56. Nb3 {[%emt 0:00:00]} Kc7 {[%emt 0:02:50]} 57. Kb5 {[%emt 0:00:00]} Nc5 {[%emt 0:00:08]} 58. Nxc5 {[%emt 0:00:00]} dxc5 {[%emt 0:00:00]} 59. Kc4 {[%emt 0:00:00]} Kb6 {[%emt 0:00:00]} 60. Kb3 {[%emt 0:00:00]} Kb5 {[%emt 0:00:00]} 61. Kb2 {[%emt 0:49:23]} c4 {[%emt 0:48:37]} 62. Kc2 {[%emt 0:00:07]} Kc5 {[%emt 0:03:00]} 63. Kd2 {[%emt 0:01:16]} Kd6 {[%emt 0:00:00]} 64. Kc2 {[%emt 0:00:00]} Ke5 {[%emt 0:00:38]} 65. Kb2 {[%emt 0:00:00]} f5 {[%emt 0:01:45]} 66. exf5 {[%emt 0:00:00]} Kxd5 {[%emt 0:00:00]} 67. Kc2 {[%emt 0:00:00]} Ke5 {[%emt 0:00:19]} 68. Kd2 {[%emt 0:00:00]} h6 {[%emt 0:03:05]} 69. Kc2 {[%emt 0:00:00]} h5 {[%emt 0:04:13]} 70. Kd2 {[%emt 0:00:00]} Kf6 {[%emt 0:00:19]} 71. Kc2 {[%emt 0:00:07]} Ke5 {[%emt 0:00:00]} 72. Kd2 {[%emt 0:00:00]} hxg4 {[%emt 0:00:11]} 73. hxg4 {[%emt 0:00:00]} c3+ {[%emt 0:00:00]} 74. Kc2 {[%emt 0:02:40]} Kd5 {[%emt 0:00:00]} 75. Kb3 {[%emt 0:01:04]} Kc5 {[%emt 0:00:00]} 76. Kc2 {[%emt 0:00:31]} Kc4 {[%emt 0:00:00]} 77. f6 {[%emt 0:00:00]} b3+ {[%emt 0:00:00]} 78. Kc1 {[%emt 0:01:00]} Kd3 {[%emt 0:00:00]} 79. f7 {[%emt 0:00:00]} b2+ {[%emt 0:00:00]} 80. Kb1 {[%emt 0:00:00]} c2+ {[%emt 0:00:00]} 81. Kxb2 {[%emt 0:48:47]} Kd2 {[%emt 0:47:02]} 82. f8=Q {[%emt 0:00:00]} c1=Q+ {[%emt 0:00:00]} 83. Kb3 {[%emt 0:00:00]} Qd1+ {[%emt 0:01:40]} 84. Kb4 {[%emt 0:02:17]} Qxg4+ {[%emt 0:00:00]} 85. Ka5 {[%emt 0:00:00]} Qf4 {[%emt 0:01:22]} 86. Qh6 {[%emt 0:00:00]} Ke3 {[%emt 0:00:14]} 87. Qe6+ {[%emt 0:00:39]} Kf2 {[%emt 0:01:44]} 88. Qb6+ {[%emt 0:00:00]} Qe3 {[%emt 0:00:35]} 89. Qf6+ {[%emt 0:00:00]} Ke2 {[%emt 0:00:05]} 90. Qf5 {[%emt 0:02:00]} Qd2+ {[%emt 0:00:23]} 91. Kb6 {[%emt 0:00:00]} Qd4+ {[%emt 0:00:00]} 92. Ka5 {[%emt 0:00:32]} Qd8+ {[%emt 0:00:00]} 93. Kb4 {[%emt 0:01:03]} Qd2+ {[%emt 0:00:00]} 94. Kc5 {[%emt 0:00:00]} Qa5+ {[%emt 0:00:00]} 0-1

[Event "DPMM 2023-24"]
[Site "Germany"]
[Date "2024.03.15"]
[Round "3.4"]
[White "Bluebaum, Matthias"]
[Black "Petersen, Marcel"]
[Result "1-0"]
[WhiteElo "2655"]
[BlackElo "2133"]
[PlyCount "75"]
[EventDate "2024.03.14"]
[EventType "team-tourn"]
[EventCountry "GER"]
[TimeControl "40/6000:20/3000:0"]

1. d4 {[%emt 0:00:00]} Nf6 {[%emt 0:00:00]} 2. c4 {[%emt 0:00:00]} e6 {[%emt 0:00:00]} 3. Nc3 {[%emt 0:00:00]} Bb4 {[%emt 0:00:00]} 4. e3 {[%emt 0:00:00]} O-O {[%emt 0:00:00]} 5. Bd2 {[%emt 0:00:00]} c5 {[%emt 0:00:00]} 6. a3 {[%emt 0:00:00]} Bxc3 {[%emt 0:00:00]} 7. Bxc3 {[%emt 0:00:00]} Ne4 {[%emt 0:00:00]} 8. Ne2 {[%emt 0:00:00]} b6 {[%emt 0:00:00]} 9. d5 {[%emt 0:00:00]} Ba6 {[%emt 0:00:00]} 10. b3 {[%emt 0:00:00]} b5 {[%emt 0:00:00]} 11. Qc2 {[%emt 0:00:00]} exd5 {[%emt 0:00:00]} 12. cxd5 {[%emt 0:00:00]} Nxc3 {[%emt 0:00:00]} 13. Qxc3 {[%emt 0:00:01]} d6 {[%emt 0:00:00]} 14. Ng3 {[%emt 0:00:00]} Nd7 {[%emt 0:00:00]} 15. Be2 {[%emt 0:04:03]} Nf6 {[%emt 0:00:10]} 16. Qd2 {[%emt 0:03:30]} Re8 {[%emt 0:00:26]} 17. O-O {[%emt 0:01:24]} Rb8 {[%emt 0:00:00]} 18. Rfd1 {[%emt 0:04:37]} Re5 {[%emt 0:10:49]} 19. Bf3 {[%emt 0:01:08]} Bb7 {[%emt 0:01:24]} 20. e4 {[%emt 0:01:18]} Qb6 {[%emt 0:10:15]} 21. Re1 {[%emt 0:00:53]} Rbe8 {[%emt 0:01:23]} 22. Re3 {[%emt 0:02:45]} Bc8 {[%emt 0:07:26]} 23. Rae1 {[%emt 0:01:15]} Bg4 {[%emt 0:14:09]} 24. Bxg4 {[%emt 0:01:00]} Nxg4 {[%emt 0:00:00]} 25. R3e2 {[%emt 0:00:00]} Nh6 {[%emt 0:05:30]} 26. h3 {[%emt 0:02:27]} f6 {[%emt 0:09:36]} 27. Kh2 {[%emt 0:01:09]} c4 {[%emt 0:01:37]} 28. bxc4 {[%emt 0:03:11]} bxc4 {[%emt 0:00:00]} 29. Qc3 {[%emt 0:03:45]} Qb3 {[%emt 0:07:08]} 30. Rc1 {[%emt 0:04:33]} f5 {[%emt 0:07:59]} 31. f4 {[%emt 0:01:24]} R5e7 {[%emt 0:00:00]} 32. Qxc4 {[%emt 0:00:11]} Qxa3 {[%emt 0:01:48]} 33. e5 {[%emt 0:03:32]} Kh8 {[%emt 0:05:32]} 34. Ra2 {[%emt 0:02:20]} Qe3 {[%emt 0:01:09]} 35. exd6 {[%emt 0:00:05]} Re4 {[%emt 0:00:32]} 36. Nxe4 {[%emt 0:00:50]} fxe4 {[%emt 0:00:38]} 37. d7 {[%emt 0:00:11]} Rd8 {[%emt 0:00:00]} 38. Qc7 {[%emt 0:00:25]} 1-0

[Event "DPMM 2023-24"]
[Site "Germany"]
[Date "2024.03.15"]
[Round "3.5"]
[White "Schmidek, Emil"]
[Black "Zuferi, Enis"]
[Result "1/2-1/2"]
[WhiteElo "2439"]
[BlackElo "2400"]
[PlyCount "118"]
[EventDate "2024.03.14"]
[EventType "team-tourn"]
[EventCountry "GER"]
[TimeControl "40/6000:20/3000:0"]

1. d4 {[%emt 0:00:00]} Nf6 {[%emt 0:00:00]} 2. c4 {[%emt 0:00:00]} e6 {[%emt 0:00:00]} 3. Nc3 {[%emt 0:00:00]} Bb4 {[%emt 0:00:00]} 4. e3 {[%emt 0:00:00]} O-O {[%emt 0:00:00]} 5. Bd3 {[%emt 0:00:00]} d5 {[%emt 0:00:00]} 6. Nf3 {[%emt 0:00:00]} dxc4 {[%emt 0:00:00]} 7. Bxc4 {[%emt 0:00:00]} c5 {[%emt 0:00:00]} 8. O-O {[%emt 0:00:00]} Nc6 {[%emt 0:00:00]} 9. a3 {[%emt 0:02:26]} Ba5 {[%emt 0:00:00]} 10. Qd3 {[%emt 0:31:56]} h6 {[%emt 0:03:27]} 11. Rd1 {[%emt 0:06:49]} cxd4 {[%emt 0:03:18]} 12. exd4 {[%emt 0:00:11]} Bb6 {[%emt 0:13:43]} 13. h3 {[%emt 0:19:29]} Qe7 {[%emt 0:39:55]} 14. Bf4 {[%emt 0:04:15]} Rd8 {[%emt 0:03:14]} 15. Qe3 {[%emt 0:08:47]} Bd7 {[%emt 0:14:55]} 16. Rd3 {[%emt 0:02:51]} Be8 {[%emt 0:03:24]} 17. Ba2 {[%emt 0:03:23]} Qf8 {[%emt 0:07:21]} 18. Re1 {[%emt 0:04:41]} Rac8 {[%emt 0:01:16]} 19. Bg3 {[%emt 0:03:12]} Rd7 {[%emt 0:05:09]} 20. Bh4 {[%emt 0:03:44]} Ne7 {[%emt 0:01:37]} 21. Bxf6 {[%emt 0:02:15]} gxf6 {[%emt 0:00:00]} 22. Qf4 {[%emt 0:02:31]} Ng6 {[%emt 0:00:34]} 23. Qd2 {[%emt 0:00:43]} Rcd8 {[%emt 0:00:01]} 24. Rd1 {[%emt 0:01:43]} Qg7 {[%emt 0:00:27]} 25. Bb1 {[%emt 0:00:29]} Bc7 {[%emt 0:00:00]} 26. Ne2 {[%emt 0:00:00]} Rd5 {[%emt 0:00:00]} 27. Ba2 {[%emt 0:00:00]} Rf5 {[%emt 0:00:44]} 28. d5 {[%emt 0:00:00]} Bb5 {[%emt 0:00:00]} 29. d6 {[%emt 0:00:00]} Bb8 {[%emt 0:00:17]} 30. Rd4 {[%emt 0:00:04]} Bxe2 {[%emt 0:00:00]} 31. Qxe2 {[%emt 0:00:00]} Nf4 {[%emt 0:00:00]} 32. Qf1 {[%emt 0:00:00]} Nxh3+ {[%emt 0:00:00]} 33. Kh1 {[%emt 0:00:00]} Nf4 {[%emt 0:00:05]} 34. Nh4 {[%emt 0:00:00]} Qg5 {[%emt 0:00:01]} 35. Nxf5 {[%emt 0:00:00]} Qxf5 {[%emt 0:00:00]} 36. Kg1 {[%emt 0:00:00]} Qg4 {[%emt 0:00:00]} 37. R1d2 {[%emt 0:00:00]} Rxd6 {[%emt 0:00:00]} 38. Rxd6 {[%emt 0:00:00]} Bxd6 {[%emt 0:00:00]} 39. g3 {[%emt 0:00:00]} Bc5 {[%emt 0:00:00]} 40. Kh2 {[%emt 0:00:00]} Qh5+ {[%emt 0:00:00]} 41. Kg1 {[%emt 0:00:14]} Qg4 {[%emt 0:28:47]} 42. Kh2 {[%emt 0:00:02]} Bb6 {[%emt 0:00:07]} 43. Bb1 {[%emt 0:29:45]} f5 {[%emt 0:07:39]} 44. Rc2 {[%emt 0:02:13]} Qh5+ {[%emt 0:02:28]} 45. Kg1 {[%emt 0:00:00]} Qg4 {[%emt 0:00:00]} 46. Kh2 {[%emt 0:00:00]} Qh5+ {[%emt 0:00:00]} 47. Kg1 {[%emt 0:00:00]} Nh3+ {[%emt 0:06:57]} 48. Kg2 {[%emt 0:00:00]} f4 {[%emt 0:00:00]} 49. Qd3 {[%emt 0:00:25]} Nxf2 {[%emt 0:03:41]} 50. Rc8+ {[%emt 0:09:01]} Kg7 {[%emt 0:00:00]} 51. Qh7+ {[%emt 0:00:00]} Kf6 {[%emt 0:00:00]} 52. Qh8+ {[%emt 0:00:00]} Ke7 {[%emt 0:00:00]} 53. Qf8+ {[%emt 0:00:12]} Kf6 {[%emt 0:00:00]} 54. Qh8+ {[%emt 0:00:00]} Ke7 {[%emt 0:00:00]} 55. Qf8+ {[%emt 0:00:00]} Kd7 {[%emt 0:00:14]} 56. Qe8+ {[%emt 0:00:00]} Kd6 {[%emt 0:00:00]} 57. Qf8+ {[%emt 0:00:00]} Kd7 {[%emt 0:00:00]} 58. Qe8+ {[%emt 0:00:00]} Kd6 {[%emt 0:00:00]} 59. Qf8+ {[%emt 0:00:00]} Kd7 {[%emt 0:00:05]} 1/2-1/2

[Event "DPMM 2023-24"]
[Site "Germany"]
[Date "2024.03.15"]
[Round "3.6"]
[White "Schnepp, Gunnar"]
[Black "Poltorak, Sebastian"]
[Result "0-1"]
[WhiteElo "2252"]
[BlackElo "2392"]
[PlyCount "80"]
[EventDate "2024.03.14"]
[EventType "team-tourn"]
[EventCountry "GER"]
[TimeControl "40/6000:20/3000:0"]

1. d4 {[%emt 0:00:00]} Nf6 {[%emt 0:00:00]} 2. c4 {[%emt 0:00:00]} g6 {[%emt 0:00:00]} 3. Nc3 {[%emt 0:00:00]} d5 {[%emt 0:00:00]} 4. cxd5 {[%emt 0:00:00]} Nxd5 {[%emt 0:00:00]} 5. e4 {[%emt 0:00:00]} Nxc3 {[%emt 0:00:00]} 6. bxc3 {[%emt 0:00:00]} Bg7 {[%emt 0:00:00]} 7. Nf3 {[%emt 0:00:00]} c5 {[%emt 0:00:00]} 8. Rb1 {[%emt 0:16:15]} O-O {[%emt 0:00:00]} 9. Be2 {[%emt 0:00:00]} Nc6 {[%emt 0:00:00]} 10. d5 {[%emt 0:00:03]} Ne5 {[%emt 0:00:00]} 11. Nxe5 {[%emt 0:00:05]} Bxe5 {[%emt 0:00:00]} 12. Qd2 {[%emt 0:00:04]} e6 {[%emt 0:00:00]} 13. f4 {[%emt 0:00:31]} Bc7 {[%emt 0:00:00]} 14. O-O {[%emt 0:00:21]} exd5 {[%emt 0:00:00]} 15. exd5 {[%emt 0:00:00]} Ba5 {[%emt 0:00:00]} 16. Ba3 {[%emt 0:10:58]} b6 {[%emt 0:03:44]} 17. Rbd1 {[%emt 0:17:30]} Qd6 {[%emt 0:12:41]} 18. Qc1 {[%emt 0:10:38]} Bd7 {[%emt 0:09:05]} 19. c4 {[%emt 0:12:22]} Rfe8 {[%emt 0:03:33]} 20. Bf3 {[%emt 0:02:36]} f6 {[%emt 0:05:09]} 21. Bb2 {[%emt 0:04:45]} b5 {[%emt 0:05:38]} 22. Qa1 {[%emt 0:03:35]} Kf7 {[%emt 0:07:44]} 23. cxb5 {[%emt 0:12:39]} Bxb5 {[%emt 0:00:43]} 24. f5 {[%emt 0:00:48]} Bxf1 {[%emt 0:03:00]} 25. fxg6+ {[%emt 0:00:00]} hxg6 {[%emt 0:00:17]} 26. Rxf1 {[%emt 0:00:00]} f5 {[%emt 0:00:58]} 27. Qc1 {[%emt 0:02:27]} Rab8 {[%emt 0:10:33]} 28. Bh5 {[%emt 0:02:36]} Rxb2 {[%emt 0:31:57]} 29. Qxb2 {[%emt 0:00:00]} Qxd5 {[%emt 0:00:00]} 30. Qc2 {[%emt 0:00:25]} Qd4+ {[%emt 0:03:47]} 31. Kh1 {[%emt 0:00:00]} gxh5 {[%emt 0:00:24]} 32. Qxf5+ {[%emt 0:00:00]} Ke7 {[%emt 0:00:00]} 33. Qh7+ {[%emt 0:00:00]} Kd6 {[%emt 0:00:09]} 34. Qxa7 {[%emt 0:00:03]} Qd3 {[%emt 0:00:00]} 35. Rg1 {[%emt 0:00:08]} Bc7 {[%emt 0:00:00]} 36. Qa4 {[%emt 0:00:00]} Re4 {[%emt 0:00:00]} 37. Qa8 {[%emt 0:00:00]} Kd7 {[%emt 0:00:02]} 38. Qf8 {[%emt 0:00:05]} Re7 {[%emt 0:00:00]} 39. Qg8 {[%emt 0:00:29]} Qd6 {[%emt 0:00:03]} 40. Qg3 {[%emt 0:00:02]} Qxg3 {[%emt 0:00:00]} 0-1

[Event "DPMM 2023-24"]
[Site "Germany"]
[Date "2024.03.15"]
[Round "3.7"]
[White "Huber, Philipp"]
[Black "Hoffmann, Udo"]
[Result "1-0"]
[WhiteElo "2306"]
[BlackElo "2235"]
[PlyCount "81"]
[EventDate "2024.03.14"]
[EventType "team-tourn"]
[EventCountry "GER"]
[TimeControl "40/6000:20/3000:0"]

1. d4 {[%emt 0:00:00]} Nf6 {[%emt 0:00:00]} 2. Bg5 {[%emt 0:00:00]} d5 {[%emt 0:00:00]} 3. Bxf6 {[%emt 0:00:00]} gxf6 {[%emt 0:00:00]} 4. e3 {[%emt 0:00:00]} c5 {[%emt 0:00:00]} 5. Nc3 {[%emt 0:00:00]} Nc6 {[%emt 0:00:21]} 6. Qh5 {[%emt 0:00:00]} e6 {[%emt 0:00:00]} 7. O-O-O {[%emt 0:00:00]} cxd4 {[%emt 0:01:29]} 8. exd4 {[%emt 0:00:00]} Bb4 {[%emt 0:00:40]} 9. Nge2 {[%emt 0:01:57]} Qe7 {[%emt 0:01:40]} 10. h4 {[%emt 0:02:43]} Bd7 {[%emt 0:00:39]} 11. Rh3 {[%emt 0:03:13]} O-O-O {[%emt 0:00:54]} 12. Kb1 {[%emt 0:07:47]} Kb8 {[%emt 0:03:42]} 13. a3 {[%emt 0:10:23]} Ba5 {[%emt 0:02:44]} 14. Re3 {[%emt 0:12:49]} Qf8 {[%emt 0:04:10]} 15. Na4 {[%emt 0:08:14]} Be8 {[%emt 0:17:26]} 16. Nc5 {[%emt 0:02:15]} Bb6 {[%emt 0:11:20]} 17. b4 {[%emt 0:00:27]} f5 {[%emt 0:15:09]} 18. f4 {[%emt 0:08:59]} Ne7 {[%emt 0:17:19]} 19. Nc1 {[%emt 0:06:09]} Rg8 {[%emt 0:01:37]} 20. Qe2 {[%emt 0:02:08]} Nc8 {[%emt 0:00:00]} 21. N1b3 {[%emt 0:01:41]} Nd6 {[%emt 0:00:03]} 22. a4 {[%emt 0:01:32]} Nc4 {[%emt 0:03:13]} 23. Rh3 {[%emt 0:08:55]} Bxa4 {[%emt 0:09:40]} 24. Nxa4 {[%emt 0:00:36]} Qxb4 {[%emt 0:00:00]} 25. Nxb6 {[%emt 0:00:37]} Qxb6 {[%emt 0:00:41]} 26. Qe1 {[%emt 0:04:04]} Rc8 {[%emt 0:00:32]} 27. Kc1 {[%emt 0:01:13]} Qa6 {[%emt 0:03:44]} 28. Qb4 {[%emt 0:01:55]} Qa2 {[%emt 0:00:29]} 29. Nc5 {[%emt 0:00:36]} b6 {[%emt 0:01:39]} 30. Bxc4 {[%emt 0:01:02]} Qxc4 {[%emt 0:00:00]} 31. Qb2 {[%emt 0:04:48]} Ka8 {[%emt 0:00:05]} 32. Rc3 {[%emt 0:00:08]} Qe2 {[%emt 0:00:00]} 33. Nd3 {[%emt 0:00:00]} Rc4 {[%emt 0:00:00]} 34. Ne5 {[%emt 0:01:56]} Rcc8 {[%emt 0:00:05]} 35. Qa3 {[%emt 0:01:05]} Qxg2 {[%emt 0:00:39]} 36. Kb2 a5 {[%emt 0:00:00]} 37. Rdd3 {[%emt 0:00:16]} Qf1 {[%emt 0:00:00]} 38. Qe7 {[%emt 0:02:32]} Rxc3 39. Rxc3 {[%emt 0:00:00]} Qxf4 {[%emt 0:00:00]} 40. Qd7 {[%emt 0:00:00]} Qf1 {[%emt 0:00:00]} 41. Rc8+ {[%emt 0:50:00]} 1-0